[Event "Susha Chess Blitz Women 2022"]
[Site "Shusha"]
[Date "2022.09.24"]
[Round "14"]
[White "Fataliyeva, Ulviyya"]
[Black "Dzagnidze, Nana"]
[Result "0-1"]
[ECO "A07"]
[WhiteElo "2408"]
[BlackElo "2526"]
[Annotator "TA"]
[PlyCount "106"]
[EventDate "2022.09.24"]
[EventType "tourn"]
[EventCountry "AZE"]
[SourceTitle "playchess.com"]
[Source "ChessBase"]
[SourceQuality "1"]
[TimeControl "180+2"]

{[%evp 14,106,15,2,6,-18,-20,-19,14,-41,-37,-104,-87,-91,-84,-88,-90,-206,-108,-129,-74,-63,-58,-61,-53,-133,-131,-119,0,-14,-16,-23,-18,-17,-14,-54,-29,-145,-64,-68,-63,-68,-46,-50,-43,-32,-43,-41,-40,-43,63,63,63,60,76,47,64,52,62,48,44,10,25,4,11,0,0,0,0,0,3,0,0,-97,0,-141,-131,-598,-572,-1616,-1597,-2376,-2161,-1739,-1801,-1697,-1440,-29984,-29985,-3124,-2902,-29990,-29987,-29988,-12840]} 1. Nf3 {[%emt 0:00:01]} Nf6 {[%emt 0:00:01]} 2. g3 {[%emt 0:00:12]} d5 {[%emt 0:00:09]} 3. Bg2 {[%emt 0:00:03]} c6 {[%emt 0:00:06]} 4. O-O {[%emt 0:00:02]} Bg4 {[%emt 0:00:06]} 5. d4 {[%emt 0:00:02]} e6 {[%emt 0:00:03]} 6. Nbd2 {[%emt 0:00:06]} Nbd7 {[%emt 0:00:04]} 7. h3 {[%emt 0:00:01]} Bh5 {[%emt 0:00:02]} 8. c4 {[%emt 0:00:01]} Bd6 {[%emt 0:00:29] D11: Slav Defence: 3 Nf3 sidelines and 3...Nf6 4 e3 Bg4.} 9. cxd5 {[%emt 0:00:09]} exd5 {[%emt 0:00:02] [#]} 10. Qb3 $146 {[%emt 0:00:02]} ({Predecessor:} 10. Re1 O-O 11. e4 dxe4 12. Nxe4 Nxe4 13. Rxe4 Nf6 14. Re1 Qb6 15. g4 Bg6 16. Ne5 Rfe8 17. Bf4 Rad8 18. Qd2 Bb4 19. Nc4 Bxd2 20. Rxe8+ Rxe8 21. Nxb6 Bxf4 {0-1 (21) Bass,C-Kaidanov,G (2638) Los Angeles 2003}) 10... Rb8 {[%emt 0:00:14] The position is equal.} 11. Qc3 {[%emt 0:00:41]} (11. Qe3+ $11 Qe7 12. Qxe7+ Bxe7 13. Re1) 11... O-O $15 {[%emt 0:00:05]} 12. Ne5 {[%emt 0:00:03]} ({White should try} 12. g4 $15 Bg6 13. Ne5) 12... Bxe2 {[%emt 0:00:06]} 13. Re1 {[%emt 0:00:02]} Ba6 {[%emt 0:00:11]} 14. b4 {[%emt 0:00:23]} Re8 {[%emt 0:00:07]} 15. f4 {[%emt 0:00:03]} (15. Ndf3 $17) 15... Nf8 {[%emt 0:00:10]} (15... Qb6 $19 {Threatens to win with ...Nxe5.} 16. b5 cxb5) 16. Nb3 {[%emt 0:00:45]} Bc4 {[%emt 0:00:28]} (16... Ne4 $142 17. Bxe4 dxe4) 17. Na5 $17 {[%emt 0:00:11]} Qb6 {[%emt 0:00:33]} 18. Bd2 {[%emt 0:00:24]} Ba6 {[%emt 0:00:17]} (18... Bxb4 $2 19. Qxb4 Ba6 20. Qc3 $18) 19. Kh1 {[%emt 0:00:01]} (19. a4 $15) 19... Ne6 {[%emt 0:00:12]} 20. Nb3 {[%emt 0:00:12]} Bc4 {[%emt 0:00:03]} (20... Qd8 $17 {[%cal Of6e4] Hoping for ...Ne4!} 21. Qc2 Rc8) 21. Nxc4 {[%emt 0:00:05]} dxc4 {[%emt 0:00:03]} 22. Qxc4 {[%emt 0:00:01]} Rbd8 {[%emt 0:00:05]} 23. Rad1 {[%emt 0:00:04]} Bf8 {[%emt 0:00:05]} 24. Bc3 {[%emt 0:00:02]} Nd5 {[%emt 0:00:02]} 25. Bxd5 {[%emt 0:00:08]} (25. Nc5 $11) 25... Rxd5 {[%emt 0:00:03]} ({Better is} 25... cxd5 $17 26. Qd3 Bxb4) 26. Re5 {[%emt 0:00:03]} Red8 {[%emt 0:00:01]} 27. Rde1 {[%emt 0:00:03]} a6 {[%emt 0:00:03]} 28. a3 {[%emt 0:00:01]} Qb5 {[%emt 0:00:04]} 29. Qxb5 axb5 {[%emt 0:00:01]} 30. Rxd5 {[%emt 0:00:05]} Rxd5 {[%emt 0:00:01]} 31. Re5 {[%emt 0:00:03]} Rxe5 {[%emt 0:00:05]} (31... Rd8 $15) 32. dxe5 $15 {[%emt 0:00:00][%mdl 4096] Endgame KBN-KBN} g6 {[%emt 0:00:01]} 33. Kg2 {[%emt 0:00:02]} Be7 {[%emt 0:00:01]} 34. Kf3 {[%emt 0:00:00]} (34. Na5 $5 {[%cal Ra5b7]}) 34... Kf8 {[%emt 0:00:01]} 35. g4 {[%emt 0:00:01]} Ke8 {[%emt 0:00:02]} 36. Ke4 {[%emt 0:00:03]} Kd7 {[%emt 0:00:01]} 37. Be1 {[%emt 0:00:06]} b6 {[%emt 0:00:04]} 38. h4 {[%emt 0:00:01]} c5 {[%emt 0:00:01]} 39. h5 {[%emt 0:00:04]} gxh5 {[%emt 0:00:04]} 40. gxh5 {[%emt 0:00:01]} Nc7 {[%emt 0:00:02]} 41. f5 {[%emt 0:00:02][%cal Bf4f5,Bf5f6][%mdl 32]} Kc6 {[%emt 0:00:01]} 42. f6 {[%emt 0:00:03]} Bf8 {[%emt 0:00:01]} 43. Kf5 {[%emt 0:00:02] [#]} (43. Bd2 $11) 43... Ne6 {[%emt 0:00:00]} (43... Kd5 $1 $17 {...Ne6 is the strong threat.} 44. Nc1 Ne6) 44. bxc5 {[%emt 0:00:02]} (44. Ke4 $11) 44... bxc5 $17 {[%emt 0:00:01][%cal Bb6c5,Bc5c4,Bc4c3,Bc3c2][%mdl 32] And now ...Kd5 would win.} 45. Bf2 $2 {[%emt 0:00:03][%mdl 8192] This move loses the game for White.} (45. Ke4 $17 {nothing else works.}) 45... Kd5 $19 {[%emt 0:00:01]} 46. Na5 {[%emt 0:00:02]} c4 {[%emt 0:00:01]} 47. Be1 {[%emt 0:00:01]} Bxa3 {[%emt 0:00:01] [#] aiming for ...b4.} 48. Nb7 {[%emt 0:00:01]} Bf8 {[%emt 0:00:01]} 49. Bc3 {[%emt 0:00:01]} b4 {[%emt 0:00:01]} 50. Be1 {[%emt 0:00:02]} c3 {[%emt 0:00:01]} 51. Na5 {[%emt 0:00:01]} c2 {[%emt 0:00:02]} 52. Nb3 {[%emt 0:00:00]} Kc4 {[%emt 0:00:01]} 53. Nc1 {[%emt 0:00:01]} b3 {[%emt 0:00:01] Weighted Error Value: White=0.79/Black=0.28 (precise)} (53... Bh6 $142 54. Ke4 Bxc1 55. Bf2 Bd2 56. Kf5 c1=Q 57. Kg4 Ng5 58. Kg3 Qh1 59. Ba7 Qf3+ 60. Kh2 Bf4+ 61. Kg1 Nh3#) 0-1

[Event "Susha Chess Blitz Women 2022"]
[Site "Shusha"]
[Date "2022.09.24"]
[Round "14"]
[White "Zawadzka, Jolanta"]
[Black "Mammadova, Gulnar"]
[Result "0-1"]
[ECO "C02"]
[WhiteElo "2401"]
[BlackElo "2382"]
[Annotator "TA"]
[PlyCount "58"]
[EventDate "2022.09.24"]
[EventType "tourn"]
[EventCountry "AZE"]
[SourceTitle "playchess.com"]
[Source "ChessBase"]
[SourceQuality "1"]
[TimeControl "180+2"]

{[%evp 10,58,20,20,19,20,18,12,35,16,23,18,31,0,24,12,21,3,40,42,29,0,71,58,89,94,71,54,43,30,37,13,16,14,23,0,13,-40,-29,-28,0,-683,-154,-161,-152,-443,-434,-712,-712,-29991,-29992]} 1. e4 {[%emt 0:00:01]} e6 {[%emt 0:00:01]} 2. d4 {[%emt 0:00:01]} d5 {[%emt 0:00:01]} 3. e5 {[%emt 0:00:01]} c5 {[%emt 0:00:03]} 4. c3 {[%emt 0:00:02]} Ne7 {[%emt 0:00:02]} 5. Nf3 {[%emt 0:00:01][%cal Bg1f3,Bf3e1,Be1d3][%mdl 32]} Nec6 {[%emt 0:00:01]} 6. Be2 {[%emt 0:00:04]} b6 $1 {[%emt 0:00:01] 6...b6 is better than 6...Nd7. C02: French: Advance Variation.} 7. O-O {[%emt 0:00:03]} Be7 {[%emt 0:00:04]} 8. Be3 {[%emt 0:00:07] [#]} a5 $146 {[%emt 0:00:08] The position is equal.} ({Predecessor:} 8... O-O 9. Nbd2 a5 10. h4 Ba6 11. g3 Qc8 12. Rc1 Bxe2 13. Qxe2 Qa6 14. Qd1 Nd7 {0-1 (30) Sizintsev,A (2080)-Chekhov,S (2466) Voronezh 2014}) 9. Ne1 {[%emt 0:00:13]} Ba6 {[%emt 0:00:12]} 10. Nd3 {[%emt 0:00:09]} Nd7 {[%emt 0:00:18]} 11. f4 {[%emt 0:00:04]} g6 {[%emt 0:00:01]} 12. Nd2 {[%emt 0:00:06]} a4 {[%emt 0:00:40]} 13. Nf3 {[%emt 0:00:06]} (13. g4 {looks sharper.} O-O 14. Rc1 f5 15. exf6 Bxf6 16. Ne5) 13... cxd4 {[%emt 0:00:12]} (13... Qc8 {is interesting.} 14. Qd2 Bb5 15. Rfc1 Qa6) 14. Nxd4 {[%emt 0:00:03]} Nxd4 {[%emt 0:00:12]} 15. Bxd4 {[%emt 0:00:04]} Bxd3 {[%emt 0:00:22]} (15... Bc4 $11 {keeps the balance.}) 16. Bxd3 {[%emt 0:00:08][%cal Of4f5]} Nc5 {[%emt 0:00:01]} 17. Bb5+ {[%emt 0:00:03]} Kf8 {[%emt 0:00:01]} 18. Qe2 {[%emt 0:00:26]} h5 {[%emt 0:00:08]} 19. Rad1 {[%emt 0:00:19]} Qc7 {[%emt 0:00:06]} 20. c4 {[%emt 0:00:03]} dxc4 {[%emt 0:00:06]} 21. Bxc4 {[%emt 0:00:03]} Rd8 {[%emt 0:00:01][%cal Oc5d3]} 22. Kh1 {[%emt 0:00:08]} Kg7 {[%emt 0:00:09]} 23. Bc3 {[%emt 0:00:22]} (23. Qf3 $11) 23... Rxd1 {[%emt 0:00:05]} (23... a3 $5 {[%cal Rd8d1]}) 24. Rxd1 {[%emt 0:00:02]} Rd8 {[%emt 0:00:01]} (24... a3 $5) 25. h3 $2 {[%emt 0:00:09][%mdl 8192] [#]} (25. Rxd8 $11 Qxd8 26. h3) 25... Rxd1+ $2 {[%emt 0:00:05]} (25... Ne4 $1 $19 {[%cal Re4g3][%mdl 512]} 26. Qxe4 Rxd1+ 27. Kh2 Qc5) 26. Qxd1 $17 {[%emt 0:00:01] [#]} Ne4 $1 {[%emt 0:00:02] Threatens to win with ...Nf2+.} 27. Qxa4 $2 {[%emt 0:00:20]} (27. Qd4 $17 {was the only defense.} Ng3+ 28. Kh2) 27... Qc5 $19 {[%emt 0:00:16] ...Qe3 is the strong threat.} 28. Ba6 {[%emt 0:00:22]} (28. Qb4 $142 Qxb4 29. Bxb4 Bxb4 30. g4) 28... Qe3 {[%emt 0:00:04] ( -> ...Bc5)} 29. Qd1 {[%emt 0:00:22]} Nf2+ {[%emt 0:00:02] Weighted Error Value: White=1.11/Black=0.30} 0-1

[Event "Susha Chess Blitz Women 2022"]
[Site "Shusha"]
[Date "2022.09.24"]
[Round "14"]
[White "Balajayeva, Khanim"]
[Black "Arabidze, Meri"]
[Result "0-1"]
[ECO "B22"]
[WhiteElo "2379"]
[BlackElo "2422"]
[Annotator "TA"]
[PlyCount "66"]
[EventDate "2022.09.24"]
[EventType "tourn"]
[EventCountry "AZE"]
[SourceTitle "playchess.com"]
[Source "ChessBase"]
[SourceQuality "1"]
[TimeControl "180+2"]

{[%evp 9,66,0,0,0,0,0,0,0,0,-43,-46,-87,-79,-86,-94,-77,-92,-93,-88,-94,-93,-90,-99,-102,-97,-110,-97,-129,-102,-104,-111,-109,-114,-150,-145,-221,-136,-145,-154,-562,-550,-974,-1039,-1039,-1038,-1019,-926,-498,-1140,-1449,-1470,-1349,-1154,-2243,-2249,-1907,-1763,-6000,-5435]} 1. e4 c5 2. c3 {[%emt 0:00:01]} d5 {[%emt 0:00:01]} 3. exd5 {[%emt 0:00:01]} Nf6 {[%emt 0:00:01]} 4. Qa4+ {[%emt 0:00:02]} Nbd7 {[%emt 0:00:04] [#]} 5. Nf3 $146 {[%emt 0:00:07]} ({Predecessor:} 5. Qb3 g6 6. Nf3 Bg7 7. d4 O-O 8. Be3 Ng4 9. Bg5 cxd4 10. cxd4 h6 11. Bh4 Nb6 {0-1 (44) Harika,D (2517)-Fedoseev,V (2701) Chess.com INT 2022}) 5... Nxd5 {[%emt 0:00:05]} 6. d4 {[%emt 0:00:01] B22: Sicilian: 2 c3.} e6 {[%emt 0:00:03]} 7. Bd3 {[%emt 0:00:02]} Be7 {[%emt 0:00:06]} 8. O-O {[%emt 0:00:02] The position is equal.} O-O {[%emt 0:00:02]} 9. c4 {[%emt 0:00:09]} N5f6 {[%emt 0:00:05]} 10. d5 {[%emt 0:00:55]} Nb6 {[%emt 0:00:07]} 11. Qc2 {[%emt 0:00:03]} exd5 {[%emt 0:00:01]} 12. cxd5 {[%emt 0:00:01]} Nbxd5 {[%emt 0:00:01] [#] And now ...Nb4 would win.} 13. a3 {[%emt 0:00:02] Against Nb4} h6 {[%emt 0:00:04]} 14. Nc3 {[%emt 0:00:01]} Nxc3 {[%emt 0:00:04]} 15. Qxc3 {[%emt 0:00:03]} Be6 {[%emt 0:00:08]} 16. Bc2 {[%emt 0:00:07]} Qc7 {[%emt 0:00:12] Inhibits Bf4.} 17. Re1 {[%emt 0:00:21]} Rfe8 {[%emt 0:00:12]} 18. b3 {[%emt 0:00:02]} Rad8 {[%emt 0:00:11]} 19. Bb2 {[%emt 0:00:02]} b5 {[%emt 0:00:04]} 20. Rac1 {[%emt 0:00:10]} Qb6 {[%emt 0:00:05]} 21. Bb1 {[%emt 0:00:05]} c4 $1 {[%emt 0:00:10] [#] ...b4 is the strong threat.} 22. bxc4 {[%emt 0:00:07]} (22. b4 $17) 22... Bxc4 {[%emt 0:00:05]} ({Inferior is} 22... bxc4 23. Qc2 $17) 23. Ne5 {[%emt 0:00:06]} Bc5 {[%emt 0:00:07]} 24. Qg3 {[%emt 0:00:06] Now White is beyond hope.} (24. Ng4 $17 {nothing else works.}) 24... Rd2 $19 {[%emt 0:00:07][%csl LRb2,LRf2][%cal Rc5f2] Black is clearly winning.} 25. Ng4 {[%emt 0:00:15] Threatening mate with Nxf6+.} Rxe1+ {[%emt 0:00:12]} 26. Rxe1 {[%emt 0:00:01]} Rxb2 {[%emt 0:00:24]} 27. Nxf6+ {[%emt 0:00:05]} Qxf6 {[%emt 0:00:01]} 28. Re8+ {[%emt 0:00:29]} Bf8 {[%emt 0:00:01]} 29. Rxf8+ {[%emt 0:00:01]} Kxf8 {[%emt 0:00:01][%cal Rb2b1]} 30. Qb8+ {[%emt 0:00:00]} Ke7 {[%emt 0:00:01][%cal Rb2b1]} 31. Qc7+ {[%emt 0:00:02]} Ke8 {[%emt 0:00:09][%cal Rb2b1]} 32. Qb8+ {[%emt 0:00:05]} Qd8 {[%emt 0:00:07][%cal Rb2b1]} 33. Qe5+ {[%emt 0:00:01]} Kf8 {[%emt 0:00:00] Weighted Error Value: White=1.09/Black=0.07 (flawless)} 0-1

[Event "Susha Chess Blitz Women 2022"]
[Site "Shusha"]
[Date "2022.09.24"]
[Round "14"]
[White "Beydullayeva, Govhar"]
[Black "Ozturk Orenli, Kubra"]
[Result "1/2-1/2"]
[ECO "D37"]
[WhiteElo "2346"]
[BlackElo "2319"]
[Annotator "TA"]
[PlyCount "109"]
[EventDate "2022.09.24"]
[EventType "tourn"]
[EventCountry "AZE"]
[SourceTitle "playchess.com"]
[Source "ChessBase"]
[SourceQuality "1"]
[TimeControl "180+2"]

{[%evp 13,109,16,31,25,37,33,41,33,41,47,78,50,143,100,130,130,129,132,243,163,292,271,316,93,180,184,186,184,172,184,175,132,97,18,68,47,115,106,76,93,110,115,204,56,50,51,59,55,47,8,8,6,5,-127,0,0,12,-22,0,-17,0,-34,115,115,115,44,46,14,15,14,14,-8,-8,-8,8,0,0,0,0,0,0,0,0,0,0,0,0,0,0,-7,0,0,0,0,0,0,0,0]} 1. d4 {[%emt 0:00:01]} d5 {[%emt 0:00:01]} 2. Nf3 {[%emt 0:00:01]} Nf6 {[%emt 0:00:01]} 3. c4 {[%emt 0:00:00]} e6 {[%emt 0:00:04]} 4. Nc3 {[%emt 0:00:02]} Be7 {[%emt 0:00:05]} 5. Bf4 {[%emt 0:00:01]} O-O {[%emt 0:00:02]} 6. e3 {[%emt 0:00:00]} b6 {[%emt 0:00:32]} 7. Bd3 {[%emt 0:00:03]} Bb7 {[%emt 0:00:38]} 8. cxd5 {[%emt 0:00:02] D37: Queen's Gambit Declined: 5 Bf4.} Nxd5 {[%emt 0:00:03]} 9. Nxd5 {[%emt 0:00:01]} Qxd5 {[%emt 0:00:36]} 10. Bxc7 {[%emt 0:00:01] White is slightly better.} Bb4+ {[%emt 0:00:15]} 11. Kf1 {[%emt 0:00:10] [#]} Na6 $146 {[%emt 0:00:12]} ({Predecessor:} 11... Nc6 12. h4 Rac8 13. Bg3 h6 14. Kg1 Rfd8 15. Rh3 Bd6 16. a3 Na5 17. Bxd6 Rxd6 {1-0 (39) Johannsson,B (2052)-Koellner,A (2248) Reykjavik 2021}) 12. Bf4 {[%emt 0:00:09]} h6 {[%emt 0:00:11]} (12... Bd6 $14) 13. h4 {[%emt 0:00:06]} Rad8 {[%emt 0:00:04]} 14. e4 {[%emt 0:00:34]} Qd7 {[%emt 0:00:06][%cal Oa6c5]} 15. Qe2 $1 {[%emt 0:00:35]} Nb8 {[%emt 0:00:04]} (15... Nc5 $16) 16. Rd1 {[%emt 0:00:06]} Be7 {[%emt 0:00:16]} (16... f6 $142 17. h5 Bd6) 17. Rh3 $1 $18 {[%emt 0:00:02]} Nc6 {[%emt 0:00:05] [#]} 18. Be3 {[%emt 0:00:34]} (18. Bxh6 $1 $18 {[%mdl 512] and White stays clearly on top.} Rfe8 (18... f6 19. Rg3) 19. Be3) 18... f5 {[%emt 0:00:06]} (18... Nb4 $16 {is a better defense.}) 19. exf5 {[%emt 0:00:12]} exf5 {[%emt 0:00:01]} 20. Bc4+ {[%emt 0:00:01]} Kh8 {[%emt 0:00:00]} 21. d5 {[%emt 0:00:11][%cal Od5c6]} Na5 {[%emt 0:00:07]} 22. Bb5 {[%emt 0:00:13]} Qd6 {[%emt 0:00:02] [#]} 23. Kg1 {[%emt 0:00:07]} ({Better is} 23. b4 $1 $16 {[%cal Rb4a5]} Qxb4 24. Ne5) 23... Bf6 {[%emt 0:00:01]} (23... Bxd5 $11 24. Bd4 Bf6 25. Bxf6 Qxf6) 24. h5 {[%emt 0:00:15]} (24. Bg5 $5) 24... Bxd5 {[%emt 0:00:02]} (24... Qe7 $14) 25. Nh4 $16 {[%emt 0:00:14]} Bxh4 {[%emt 0:00:01]} 26. Rxh4 {[%emt 0:00:00]} Qe7 {[%emt 0:00:13]} 27. Rhd4 {[%emt 0:00:04]} Bf7 {[%emt 0:00:05]} (27... Bc6 $16 {was called for.}) 28. Rxd8 {[%emt 0:00:05]} (28. Rd7 $18 Rxd7 29. Rxd7) 28... Rxd8 $14 {[%emt 0:00:00]} 29. Rxd8+ {[%emt 0:00:02]} Qxd8 {[%emt 0:00:01]} 30. b4 {[%emt 0:00:02]} Nb7 {[%emt 0:00:01]} 31. Bc6 {[%emt 0:00:02]} Nd6 {[%emt 0:00:01]} 32. Qd2 $36 {[%emt 0:00:03][%mdl 2048] Black is under pressure.} Qe7 {[%emt 0:00:03]} 33. Bf3 {[%emt 0:00:02]} (33. Bf4 $11 {remains equal.} Ne8 34. Bd7) 33... Ne4 {[%emt 0:00:01]} (33... Nc4 $17 34. Qd4 Nxe3 35. fxe3 Bxa2) 34. Qd4 $11 {[%emt 0:00:03]} Kh7 {[%emt 0:00:01]} 35. b5 {[%emt 0:00:03]} Nf6 {[%emt 0:00:02]} 36. Qf4 {[%emt 0:00:03]} Qe6 {[%emt 0:00:01]} 37. Qb8 {[%emt 0:00:03]} Ne4 {[%emt 0:00:03]} (37... Qd7 $15 {stays ahead.}) 38. Qxa7 $16 {[%emt 0:00:01] Threatens to win with a4. White is more active.} Qxa2 {[%emt 0:00:04]} 39. Qxa2 {[%emt 0:00:02]} (39. Bxb6 $16 {Qxa2 is the strong threat.} Ng5 40. Bc6 (40. Bd1 $2 Qb1 $19)) 39... Bxa2 $14 {[%emt 0:00:01]} 40. Bxb6 $16 {[%emt 0:00:01][%mdl 4096] Endgame Hoping for Be2. KBB-KBN} Bc4 {[%emt 0:00:01] Inhibits Be2. The position is equal.} 41. Bd4 {[%emt 0:00:04] Strongly threatening b6.} Bxb5 {[%emt 0:00:01]} 42. g4 {[%emt 0:00:00]} Nd2 {[%emt 0:00:02]} 43. Bd1 {[%emt 0:00:03]} Bd7 {[%emt 0:00:05]} 44. gxf5 {[%emt 0:00:03]} Bxf5 {[%emt 0:00:00]} 45. Kg2 {[%emt 0:00:01]} Be4+ {[%emt 0:00:03]} 46. Kg3 {[%emt 0:00:00]} Bd3 {[%emt 0:00:02]} 47. Ba4 {[%emt 0:00:04]} Ne4+ {[%emt 0:00:03]} 48. Kf4 {[%emt 0:00:01]} Ng5 {[%emt 0:00:02]} 49. Bd7 {[%emt 0:00:03]} Be2 {[%emt 0:00:04]} 50. Bf5+ {[%emt 0:00:01] This bishop pair is nice.} Kg8 {[%emt 0:00:01]} 51. Bg6 {[%emt 0:00:04]} Bd1 {[%emt 0:00:01]} 52. Bc3 {[%emt 0:00:02]} Be2 {[%emt 0:00:03]} 53. Ke3 {[%emt 0:00:01]} Bd1 {[%emt 0:00:00]} 54. Kf4 {[%emt 0:00:01]} Be2 {[%emt 0:00:01]} 55. Ke3 {[%emt 0:00:01] Weighted Error Value: White=0.30/Black=0.32} 1/2-1/2